[Event "New Zealand Rapid Championship"]
[Site "Wellington"]
[Date "2023.01.12"]
[Round "7.13"]
[White "Wells, Clinton A"]
[Black "Archer, Ollie"]
[Result "0-1"]
[TimeControl "25+5"]
[WhiteFideId "4301188"]
[BlackFideId "4317262"]
[WhiteElo "1785"]
[BlackElo "1806"]

1. d4 {[%clk 00:25:09]} d5 {[%clk 00:25:08]} {[%emt 00:00:02]} 2. c4 {[%clk
00:25:00]} {[%emt 00:00:14]} e6 {[%clk 00:25:11]} {[%emt 00:00:02]} 3. Nf3
{[%clk 00:24:23]} {[%emt 00:00:43]} Nf6 {[%clk 00:25:13]} {[%emt 00:00:03]} 4.
Bf4 {[%clk 00:24:06]} {[%emt 00:00:22]} dxc4 {[%clk 00:24:24]} {[%emt
00:00:54]} 5. Qa4+ {[%clk 00:23:57]} {[%emt 00:00:15]} c6 {[%clk 00:23:55]}
{[%emt 00:00:33]} 6. Qxc4 {[%clk 00:23:55]} {[%emt 00:00:06]} b5 {[%clk
00:23:51]} {[%emt 00:00:09]} 7. Qc2 {[%clk 00:23:16]} {[%emt 00:00:45]} Bb7
{[%clk 00:23:12]} {[%emt 00:00:44]} 8. e3 {[%clk 00:22:56]} {[%emt 00:00:25]}
Nbd7 {[%clk 00:22:54]} {[%emt 00:00:22]} 9. Nc3 {[%clk 00:21:27]} {[%emt
00:01:34]} a6 {[%clk 00:22:33]} {[%emt 00:00:27]} 10. Be2 {[%clk 00:18:52]}
{[%emt 00:02:40]} c5 {[%clk 00:21:50]} {[%emt 00:00:47]} 11. Rd1 {[%clk
00:16:44]} {[%emt 00:02:13]} Rc8 {[%clk 00:19:33]} {[%emt 00:02:22]} 12. Qb1
{[%clk 00:13:44]} {[%emt 00:03:05]} b4 {[%clk 00:18:28]} {[%emt 00:01:10]} 13.
Na4 {[%clk 00:13:25]} {[%emt 00:00:24]} Be4 {[%clk 00:18:08]} {[%emt 00:00:25]}
14. Bd3 {[%clk 00:12:41]} {[%emt 00:00:50]} Bxd3 {[%clk 00:17:52]} {[%emt
00:00:21]} 15. Qxd3 {[%clk 00:11:43]} {[%emt 00:01:03]} c4 {[%clk 00:17:48]}
{[%emt 00:00:09]} 16. Qe2 {[%clk 00:11:05]} {[%emt 00:00:43]} Qa5 {[%clk
00:16:56]} {[%emt 00:00:57]} 17. b3 {[%clk 00:11:06]} {[%emt 00:00:04]} c3
{[%clk 00:16:40]} {[%emt 00:00:22]} 18. Rc1 {[%clk 00:10:33]} {[%emt 00:00:38]}
Be7 {[%clk 00:14:43]} {[%emt 00:02:01]} 19. Rc2 {[%clk 00:10:28]} {[%emt
00:00:10]} O-O {[%clk 00:13:11]} {[%emt 00:01:37]} 20. h3 {[%clk 00:10:10]}
{[%emt 00:00:23]} Qb5 {[%clk 00:13:03]} {[%emt 00:00:13]} 21. O-O {[%clk
00:08:20]} {[%emt 00:01:55]} Qxe2 {[%clk 00:12:33]} {[%emt 00:00:35]} 22. Rxe2
{[%clk 00:08:23]} {[%emt 00:00:02]} Ne4 {[%clk 00:12:15]} {[%emt 00:00:23]} 23.
Ne5 {[%clk 00:06:39]} {[%emt 00:01:49]} Nxe5 {[%clk 00:11:04]} {[%emt
00:01:16]} 24. Bxe5 {[%clk 00:06:42]} {[%emt 00:00:03]} Rc6 {[%clk 00:10:46]}
{[%emt 00:00:23]} 25. Rc1 {[%clk 00:06:36]} {[%emt 00:00:10]} Rfc8 {[%clk
00:09:23]} {[%emt 00:01:29]} 26. Rcc2 {[%clk 00:06:27]} {[%emt 00:00:14]} Nd2
{[%clk 00:08:54]} {[%emt 00:00:34]} 27. Re1 {[%clk 00:05:55]} {[%emt 00:00:37]}
f6 {[%clk 00:08:28]} {[%emt 00:00:31]} 28. Bg3 {[%clk 00:05:43]} {[%emt
00:00:16]} Ne4 {[%clk 00:08:00]} {[%emt 00:00:32]} 29. Bh2 {[%clk 00:05:39]}
{[%emt 00:00:10]} Bd6 {[%clk 00:07:31]} {[%emt 00:00:34]} 30. Bxd6 {[%clk
00:05:16]} {[%emt 00:00:27]} Nxd6 {[%clk 00:07:34]} {[%emt 00:00:02]} 31. Nc5
{[%clk 00:03:46]} {[%emt 00:01:35]} Nb5 {[%clk 00:07:34]} {[%emt 00:00:05]} 32.
Rec1 {[%clk 00:03:41]} {[%emt 00:00:10]} a5 {[%clk 00:06:52]} {[%emt 00:00:47]}
33. f3 {[%clk 00:03:26]} {[%emt 00:00:20]} e5 {[%clk 00:06:52]} {[%emt
00:00:05]} 34. a4 {[%clk 00:02:02]} {[%emt 00:01:28]} exd4 {[%clk 00:06:28]}
{[%emt 00:00:30]} 35. axb5 {[%clk 00:01:53]} {[%emt 00:00:14]} Rxc5 {[%clk
00:06:31]} {[%emt 00:00:02]} 36. exd4 {[%clk 00:01:57]} {[%emt 00:00:01]} Rxb5
{[%clk 00:06:32]} {[%emt 00:00:04]} 37. Kf2 {[%clk 00:01:53]} {[%emt 00:00:09]}
Rb7 {[%clk 00:06:03]} {[%emt 00:00:34]} 38. Ra1 {[%clk 00:01:47]} {[%emt
00:00:11]} Ra7 {[%clk 00:06:03]} {[%emt 00:00:05]} 39. Ke2 {[%clk 00:01:44]}
{[%emt 00:00:08]} a4 {[%clk 00:05:51]} {[%emt 00:00:18]} 40. Kd3 {[%clk
00:01:22]} {[%emt 00:00:26]} axb3 {[%clk 00:05:49]} {[%emt 00:00:07]} 41. Rxa7
{[%clk 00:01:24]} {[%emt 00:00:03]} bxc2 {[%clk 00:05:52]} {[%emt 00:00:03]} 42.
Kxc2 {[%clk 00:01:28]} b3+ {[%clk 00:05:56]} {[%emt 00:00:01]} 0-1

[Event "New Zealand Rapid Championship"]
[Site "Wellington"]
[Date "2023.01.12"]
[Round "7.14"]
[White "Wang, Justin Zhide"]
[Black "Suggate, Romero"]
[Result "1/2-1/2"]
[TimeControl "25+5"]
[WhiteFideId "4312830"]
[BlackFideId "4313534"]
[WhiteElo "1619"]
[BlackElo "1806"]

1. e4 {[%clk 00:25:09]} c5 {[%clk 00:25:09]} 2. Nc3 {[%clk 00:25:10]} {[%emt
00:00:05]} Nc6 {[%clk 00:24:41]} {[%emt 00:00:34]} 3. Bb5 {[%clk 00:25:10]}
{[%emt 00:00:05]} a6 {[%clk 00:24:14]} {[%emt 00:00:32]} 4. Bxc6 {[%clk
00:25:10]} {[%emt 00:00:04]} bxc6 {[%clk 00:24:17]} {[%emt 00:00:02]} 5. f4
{[%clk 00:25:04]} {[%emt 00:00:11]} e6 {[%clk 00:24:11]} {[%emt 00:00:11]} 6.
Nf3 {[%clk 00:25:07]} {[%emt 00:00:03]} d5 {[%clk 00:24:12]} {[%emt 00:00:04]}
7. d3 {[%clk 00:25:05]} {[%emt 00:00:06]} Be7 {[%clk 00:22:18]} {[%emt
00:01:59]} 8. O-O {[%clk 00:24:03]} {[%emt 00:01:07]} Rb8 {[%clk 00:22:09]}
{[%emt 00:00:15]} 9. Ne2 {[%clk 00:23:28]} {[%emt 00:00:40]} Bf6 {[%clk
00:22:05]} {[%emt 00:00:08]} 10. e5 {[%clk 00:23:28]} {[%emt 00:00:05]} Be7
{[%clk 00:22:09]} {[%emt 00:00:01]} 11. c4 {[%clk 00:23:28]} {[%emt 00:00:05]}
Nh6 {[%clk 00:22:10]} {[%emt 00:00:03]} 12. b3 {[%clk 00:23:09]} {[%emt
00:00:23]} Nf5 {[%clk 00:22:12]} {[%emt 00:00:04]} 13. Ng3 {[%clk 00:23:05]}
{[%emt 00:00:09]} g6 {[%clk 00:20:28]} {[%emt 00:01:49]} 14. Nxf5 {[%clk
00:20:50]} {[%emt 00:02:20]} gxf5 {[%clk 00:20:30]} {[%emt 00:00:02]} 15. Ng5
{[%clk 00:20:44]} {[%emt 00:00:12]} Bxg5 {[%clk 00:20:06]} {[%emt 00:00:29]} 16.
fxg5 {[%emt 00:00:03]} O-O {[%clk 00:19:44]} {[%emt 00:00:26]} 17. Bf4 {[%clk
00:19:58]} {[%emt 00:00:54]} Kh8 {[%clk 00:19:33]} {[%emt 00:00:16]} 18. Rf3
{[%clk 00:19:54]} {[%emt 00:00:09]} Rg8 {[%clk 00:19:03]} {[%emt 00:00:35]} 19.
Rh3 {[%clk 00:19:56]} {[%emt 00:00:04]} Rg6 {[%clk 00:18:42]} {[%emt 00:00:25]}
20. Be3 {[%clk 00:18:36]} {[%emt 00:01:25]} Rb7 {[%clk 00:17:22]} {[%emt
00:01:25]} 21. Qh5 {[%clk 00:17:24]} {[%emt 00:01:18]} Qg8 {[%clk 00:17:06]}
{[%emt 00:00:22]} 22. Rg3 {[%clk 00:17:00]} {[%emt 00:00:28]} Qg7 {[%clk
00:16:38]} {[%emt 00:00:34]} 23. Bf4 {[%clk 00:16:09]} {[%emt 00:00:56]} a5
{[%clk 00:16:41]} {[%emt 00:00:02]} 24. Rc1 {[%clk 00:15:35]} {[%emt 00:00:38]}
d4 {[%clk 00:16:15]} {[%emt 00:00:31]} 25. h4 {[%clk 00:15:24]} {[%emt
00:00:17]} Qf8 {[%clk 00:16:08]} {[%emt 00:00:12]} 26. Qf3 {[%clk 00:15:23]}
{[%emt 00:00:05]} Bd7 {[%clk 00:16:11]} {[%emt 00:00:03]} 27. h5 {[%clk
00:14:36]} {[%emt 00:00:52]} Rg8 {[%clk 00:16:14]} {[%emt 00:00:02]} 28. g6
{[%clk 00:14:21]} {[%emt 00:00:20]} fxg6 {[%clk 00:15:51]} {[%emt 00:00:28]} 29.
hxg6 {[%clk 00:14:25]} Rxg6 {[%clk 00:15:47]} {[%emt 00:00:08]} 30. Rxg6 {[%clk
00:14:29]} {[%emt 00:00:01]} hxg6 {[%clk 00:15:51]} {[%emt 00:00:02]} 31. Qh3+
{[%clk 00:14:33]} Kg8 {[%clk 00:15:54]} {[%emt 00:00:02]} 32. Qh4 {[%clk
00:14:33]} {[%emt 00:00:06]} Qg7 {[%clk 00:15:29]} {[%emt 00:00:30]} 33. Bh6
{[%clk 00:13:40]} {[%emt 00:00:57]} Qh8 {[%clk 00:10:22]} {[%emt 00:05:12]} 34.
Kf2 {[%clk 00:13:08]} {[%emt 00:00:37]} Be8 {[%clk 00:07:55]} {[%emt 00:02:32]}
35. Rh1 {[%clk 00:12:34]} {[%emt 00:00:39]} Rh7 {[%clk 00:06:33]} {[%emt
00:01:27]} 36. Qf4 {[%clk 00:11:16]} {[%emt 00:01:23]} Kf7 {[%clk 00:06:15]}
{[%emt 00:00:24]} 37. g4 {[%clk 00:10:42]} {[%emt 00:00:38]} Ke7 {[%clk
00:05:59]} {[%emt 00:00:21]} 38. g5 {[%clk 00:10:34]} {[%emt 00:00:13]} Bd7
{[%clk 00:05:20]} {[%emt 00:00:44]} 39. Re1 {[%clk 00:10:24]} {[%emt 00:00:16]}
Qb8 {[%clk 00:05:21]} {[%emt 00:00:04]} 40. Qd2 {[%clk 00:10:20]} {[%emt
00:00:09]} Qb4 {[%clk 00:05:24]} {[%emt 00:00:02]} 41. Qxb4 {[%clk 00:10:14]}
{[%emt 00:00:11]} cxb4 {[%clk 00:05:20]} {[%emt 00:00:08]} 42. a3 {[%clk
00:10:10]} {[%emt 00:00:10]} c5 {[%clk 00:05:24]} {[%emt 00:00:01]} 43. axb4
{[%clk 00:10:14]} axb4 {[%clk 00:05:13]} {[%emt 00:00:16]} 44. Ra1 {[%clk
00:10:18]} Rh8 {[%clk 00:05:08]} {[%emt 00:00:10]} 45. Ra7 {[%clk 00:10:18]}
{[%emt 00:00:06]} Rc8 {[%clk 00:04:58]} {[%emt 00:00:14]} 46. Bg7 {[%clk
00:10:03]} {[%emt 00:00:20]} Ke8 {[%clk 00:04:33]} {[%emt 00:00:30]} 47. Bf6
{[%clk 00:10:05]} {[%emt 00:00:03]} Rc6 {[%clk 00:04:36]} {[%emt 00:00:02]} 48.
Ra5 {[%clk 00:09:00]} {[%emt 00:01:11]} Rc8 {[%clk 00:04:31]} {[%emt 00:00:09]}
49. Bg7 {[%clk 00:08:51]} {[%emt 00:00:15]} Rc7 {[%clk 00:04:32]} {[%emt
00:00:03]} 50. Bh8 {[%clk 00:08:34]} {[%emt 00:00:22]} Bc8 {[%clk 00:04:22]}
{[%emt 00:00:15]} 51. Ra8 {[%clk 00:08:16]} {[%emt 00:00:23]} Kd7 {[%clk
00:03:45]} {[%emt 00:00:42]} 52. Bg7 {[%clk 00:08:08]} {[%emt 00:00:12]} Ke8
{[%clk 00:03:37]} {[%emt 00:00:13]} 53. Bh6 {[%clk 00:07:58]} {[%emt 00:00:15]}
Kf7 {[%clk 00:03:16]} {[%emt 00:00:27]} 54. Ra5 {[%clk 00:07:56]} {[%emt
00:00:08]} Bd7 {[%clk 00:02:25]} {[%emt 00:00:56]} 55. Ra8 {[%clk 00:07:49]}
{[%emt 00:00:12]} Rc8 {[%clk 00:02:22]} {[%emt 00:00:08]} 56. Ra7 {[%clk
00:25:05]} {[%emt 00:00:49]} 1/2-1/2

[Event "New Zealand Rapid Championship"]
[Site "Wellington"]
[ePGN "0.1;DGT LiveChess/2.2.5"]
[Date "2023.01.12"]
[Round "8.1"]
[White "Croad, Nicolas"]
[Black "Shoker, Samy"]
[Result "0-1"]
[TimeControl "25+5"]
[WhiteTitle "FM"]
[BlackTitle "GM"]
[WhiteFideId "4300793"]
[BlackFideId "627143"]
[WhiteElo "2309"]
[BlackElo "2440"]

1. e4 {[%clk 00:25:08]} {[%emt 00:00:03]} g6 {[%clk 00:25:09]} 2. d4 {[%clk
00:25:11]} {[%emt 00:00:02]} Bg7 {[%clk 00:25:12]} 3. Nc3 {[%clk 00:25:14]}
{[%emt 00:00:03]} d6 {[%clk 00:25:16]} {[%emt 00:00:01]} 4. Nf3 {[%clk
00:25:17]} {[%emt 00:00:02]} a6 {[%clk 00:25:20]} {[%emt 00:00:01]} 5. a4
{[%clk 00:25:13]} {[%emt 00:00:08]} Nc6 {[%clk 00:25:23]} {[%emt 00:00:02]} 6.
Be2 {[%clk 00:25:12]} {[%emt 00:00:06]} Nf6 {[%clk 00:25:20]} {[%emt 00:00:09]}
7. O-O {[%clk 00:25:09]} {[%emt 00:00:08]} O-O {[%clk 00:25:23]} {[%emt
00:00:01]} 8. h3 {[%clk 00:25:07]} {[%emt 00:00:07]} e6 {[%clk 00:25:27]}
{[%emt 00:00:02]} 9. Be3 {[%clk 00:25:09]} {[%emt 00:00:03]} h6 {[%clk
00:25:30]} {[%emt 00:00:01]} 10. Qd2 {[%clk 00:25:10]} {[%emt 00:00:05]} Kh7
{[%clk 00:25:34]} {[%emt 00:00:01]} 11. Rad1 {[%clk 00:24:53]} {[%emt
00:00:21]} Ne7 {[%clk 00:25:26]} {[%emt 00:00:14]} 12. Bd3 {[%clk 00:24:38]}
{[%emt 00:00:21]} b6 {[%clk 00:25:27]} {[%emt 00:00:03]} 13. Ne2 {[%clk
00:24:34]} {[%emt 00:00:09]} Bb7 {[%clk 00:25:19]} {[%emt 00:00:13]} 14. Ng3
{[%clk 00:24:36]} {[%emt 00:00:03]} d5 {[%clk 00:23:50]} {[%emt 00:01:33]} 15.
exd5 {[%clk 00:21:45]} {[%emt 00:02:57]} Nexd5 {[%clk 00:23:05]} {[%emt
00:00:50]} 16. c3 {[%clk 00:21:30]} {[%emt 00:00:20]} Qe8 {[%clk 00:22:05]}
{[%emt 00:01:04]} 17. Qc2 {[%clk 00:20:58]} {[%emt 00:00:37]} Nxe3 {[%clk
00:21:56]} {[%emt 00:00:14]} 18. fxe3 {[%clk 00:21:02]} {[%emt 00:00:01]} Nd5
{[%clk 00:21:03]} {[%emt 00:00:57]} 19. Rde1 {[%clk 00:19:10]} {[%emt
00:01:59]} Kg8 {[%clk 00:21:01]} {[%emt 00:00:07]} 20. Ne5 {[%clk 00:18:04]}
{[%emt 00:01:11]} Rd8 {[%clk 00:15:10]} {[%emt 00:05:56]} 21. e4 {[%clk
00:10:37]} {[%emt 00:07:33]} Ne7 {[%clk 00:14:47]} {[%emt 00:00:28]} 22. Ng4
{[%clk 00:10:03]} {[%emt 00:00:39]} f6 {[%clk 00:11:47]} {[%emt 00:03:05]} 23.
Bc4 {[%clk 00:08:18]} {[%emt 00:01:50]} Bc8 {[%clk 00:10:31]} {[%emt 00:01:20]}
24. Ne2 {[%clk 00:06:53]} {[%emt 00:01:31]} Kh7 {[%clk 00:08:30]} {[%emt
00:02:05]} 25. Nf4 {[%clk 00:06:22]} {[%emt 00:00:36]} e5 {[%clk 00:05:59]}
{[%emt 00:02:37]} 26. dxe5 {[%clk 00:05:58]} {[%emt 00:00:29]} fxe5 {[%clk
00:05:56]} {[%emt 00:00:08]} 27. Ne6 {[%clk 00:04:22]} {[%emt 00:01:41]} Rxf1+
{[%clk 00:04:26]} {[%emt 00:01:34]} 28. Rxf1 {[%clk 00:04:15]} {[%emt
00:00:12]} Bxe6 {[%clk 00:04:26]} {[%emt 00:00:05]} 29. Bxe6 {[%clk 00:04:19]}
Qc6 {[%clk 00:04:30]} {[%emt 00:00:01]} 30. Bb3 {[%clk 00:03:52]} {[%emt
00:00:32]} h5 {[%clk 00:04:05]} {[%emt 00:00:31]} 31. Nh2 {[%clk 00:03:23]}
{[%emt 00:00:34]} Qc5+ {[%clk 00:03:11]} {[%emt 00:00:58]} 32. Qf2 {[%clk
00:02:51]} {[%emt 00:00:37]} Qxf2+ {[%clk 00:00:45]} {[%emt 00:02:32]} 33. Rxf2
{[%clk 00:02:55]} Rf8 {[%clk 00:00:22]} {[%emt 00:00:27]} 34. Nf3 {[%clk
00:02:10]} {[%emt 00:00:53]} Kh6 {[%clk 00:00:15]} {[%emt 00:00:10]} 35. Rd2
{[%clk 00:01:44]} {[%emt 00:00:31]} Nc8 {[%clk 00:00:18]} {[%emt 00:00:02]} 36.
Rd7 {[%clk 00:01:34]} {[%emt 00:00:15]} Nd6 {[%clk 00:00:21]} {[%emt 00:00:02]}
37. Bd5 {[%clk 00:01:23]} {[%emt 00:00:15]} Rf4 {[%clk 00:00:13]} {[%emt
00:00:13]} 38. Rxc7 {[%clk 00:01:06]} {[%emt 00:00:23]} Nxe4 {[%clk 00:00:17]}
{[%emt 00:00:02]} 39. Rc6 {[%clk 00:00:36]} {[%emt 00:00:34]} Nf6 {[%clk
00:00:21]} 40. Bf7 {[%clk 00:00:23]} {[%emt 00:00:18]} e4 {[%clk 00:00:14]}
{[%emt 00:00:12]} 41. Nd4 {[%clk 00:00:19]} {[%emt 00:00:09]} e3 {[%clk
00:00:18]} 42. Bc4 {[%clk 00:00:14]} {[%emt 00:00:10]} b5 {[%clk 00:00:16]}
{[%emt 00:00:07]} 43. axb5 {[%clk 00:00:17]} {[%emt 00:00:02]} axb5 {[%clk
00:00:20]} 44. Bxb5 {[%clk 00:00:21]} Rf2 {[%clk 00:00:18]} {[%emt 00:00:07]}
45. b4 {[%clk 00:00:20]} {[%emt 00:00:06]} Nd5 {[%clk 00:00:16]} {[%emt
00:00:06]} 46. Bd3 {[%clk 00:00:21]} {[%emt 00:00:04]} Nf4 {[%clk 00:00:21]} 47.
Bb5 {[%clk 00:00:14]} {[%emt 00:00:12]} Kh7 {[%clk 00:00:18]} {[%emt 00:00:07]}
48. Rc7 {[%clk 00:00:17]} {[%emt 00:00:02]} Kh6 {[%clk 00:00:21]} {[%emt
00:00:03]} 49. Rc6 {[%clk 00:00:21]} Kh7 {[%clk 00:00:22]} {[%emt 00:00:04]} 50.
Rc7 {[%clk 00:00:25]} h4 {[%clk 00:00:24]} {[%emt 00:00:02]} 51. Bc4 {[%clk
00:00:17]} {[%emt 00:00:14]} Rxg2+ {[%clk 00:00:28]} {[%emt 00:00:01]} 52. Kf1
{[%clk 00:00:19]} {[%emt 00:00:03]} Rf2+ {[%clk 00:00:32]} 53. Ke1 {[%clk
00:00:21]} {[%emt 00:00:03]} Kh6 {[%clk 00:00:33]} {[%emt 00:00:04]} 54. Rc6
{[%clk 00:00:25]} {[%emt 00:00:01]} Nxh3 {[%clk 00:00:26]} {[%emt 00:00:13]} 55.
b5 {[%clk 00:00:25]} {[%emt 00:00:05]} Bxd4 {[%clk 00:00:25]} {[%emt 00:00:07]}
56. cxd4 {[%clk 00:00:29]} Nf4 {[%clk 00:00:29]} 57. b6 {[%clk 00:00:29]}
{[%emt 00:00:05]} h3 {[%clk 00:00:32]} {[%emt 00:00:02]} 58. b7 {[%clk
00:00:16]} {[%emt 00:00:18]} h2 {[%emt 00:00:31]} 0-1

[Event "New Zealand Rapid Championship"]
[Site "Wellington"]
[Date "2023.01.12"]
[Round "8.2"]
[White "Xie, Felix"]
[Black "Ker, Anthony F"]
[Result "1/2-1/2"]
[TimeControl "25+5"]
[WhiteTitle "CM"]
[BlackTitle "IM"]
[WhiteFideId "4308174"]
[BlackFideId "4300084"]
[WhiteElo "2232"]
[BlackElo "2359"]

1. d4 {[%clk 00:25:08]} {[%emt 00:00:03]} Nf6 {[%clk 00:25:06]} {[%emt
00:00:04]} 2. c4 {[%clk 00:25:11]} {[%emt 00:00:01]} e6 {[%clk 00:25:07]}
{[%emt 00:00:05]} 3. g3 {[%clk 00:25:13]} {[%emt 00:00:02]} Bb4+ {[%clk
00:24:37]} {[%emt 00:00:35]} 4. Bd2 {[%clk 00:25:17]} {[%emt 00:00:01]} Qe7
{[%clk 00:24:31]} {[%emt 00:00:12]} 5. Nf3 {[%clk 00:25:20]} {[%emt 00:00:02]}
Ne4 {[%clk 00:23:54]} {[%emt 00:00:42]} 6. Bg2 {[%clk 00:25:01]} {[%emt
00:00:24]} O-O {[%clk 00:23:27]} {[%emt 00:00:31]} 7. O-O {[%clk 00:25:00]}
{[%emt 00:00:06]} Bxd2 {[%clk 00:23:16]} {[%emt 00:00:17]} 8. Nfxd2 {[%clk
00:24:45]} {[%emt 00:00:19]} Nxd2 {[%clk 00:23:12]} {[%emt 00:00:08]} 9. Qxd2
{[%clk 00:24:49]} {[%emt 00:00:01]} d6 {[%clk 00:23:06]} {[%emt 00:00:11]} 10.
Nc3 {[%clk 00:24:47]} {[%emt 00:00:07]} c6 {[%clk 00:22:54]} {[%emt 00:00:17]}
11. b4 {[%clk 00:23:53]} {[%emt 00:01:00]} d5 {[%clk 00:20:33]} {[%emt
00:02:26]} 12. c5 {[%clk 00:23:45]} {[%emt 00:00:12]} e5 {[%clk 00:20:31]}
{[%emt 00:00:07]} 13. e4 {[%clk 00:22:44]} {[%emt 00:01:06]} exd4 {[%clk
00:18:40]} {[%emt 00:01:57]} 14. Qxd4 {[%clk 00:22:39]} {[%emt 00:00:09]} dxe4
{[%clk 00:18:39]} {[%emt 00:00:06]} 15. Nxe4 {[%clk 00:22:25]} {[%emt
00:00:19]} a5 {[%clk 00:18:30]} {[%emt 00:00:14]} 16. a3 {[%clk 00:21:56]}
{[%emt 00:00:35]} axb4 {[%clk 00:18:04]} {[%emt 00:00:30]} 17. axb4 {[%clk
00:22:00]} Rxa1 {[%clk 00:18:01]} {[%emt 00:00:08]} 18. Rxa1 {[%clk 00:22:03]}
Na6 {[%emt 00:00:58]} 19. Nd6 {[%clk 00:21:17]} Nc7 {[%clk 00:17:52]} {[%emt
00:00:12]} 20. Rd1 {[%clk 00:19:47]} {[%emt 00:01:35]} Be6 {[%clk 00:15:31]}
{[%emt 00:02:26]} 21. Re1 {[%emt 00:05:20]} Ne8 {[%clk 00:13:47]} 22. Bh3
{[%clk 00:07:46]} {[%emt 00:08:40]} Nxd6 {[%clk 00:12:30]} {[%emt 00:01:22]} 23.
cxd6 {[%clk 00:07:50]} Qd7 {[%clk 00:12:28]} {[%emt 00:00:07]} 24. Bxe6 {[%clk
00:07:51]} {[%emt 00:00:04]} fxe6 {[%clk 00:12:28]} {[%emt 00:00:06]} 25. Qe5
{[%clk 00:07:55]} Re8 {[%clk 00:09:59]} {[%emt 00:02:34]} 26. Re4 {[%clk
00:07:10]} {[%emt 00:00:50]} g6 {[%clk 00:09:30]} {[%emt 00:00:34]} 27. h4
{[%clk 00:05:11]} {[%emt 00:02:03]} Rd8 {[%clk 00:08:11]} {[%emt 00:01:25]} 28.
Rd4 {[%clk 00:03:03]} {[%emt 00:02:13]} Rf8 {[%clk 00:07:47]} {[%emt 00:00:29]}
29. g4 {[%clk 00:02:21]} {[%emt 00:00:48]} Qf7 {[%emt 00:00:47]} 30. f4 {[%clk
00:01:49]} Qd7 {[%clk 00:07:12]} {[%emt 00:00:34]} 31. Re4 {[%clk 00:01:53]}
{[%emt 00:00:01]} Kf7 {[%clk 00:06:38]} {[%emt 00:00:38]} 32. h5 {[%clk
00:01:17]} {[%emt 00:00:41]} Rd8 {[%clk 00:06:29]} {[%emt 00:00:16]} 33. Rd4
{[%clk 00:01:17]} {[%emt 00:00:03]} b6 {[%clk 00:06:00]} {[%emt 00:00:34]} 34.
Rd2 {[%clk 00:00:55]} {[%emt 00:00:27]} Rg8 {[%clk 00:04:16]} {[%emt 00:01:49]}
35. Kf1 {[%clk 00:00:29]} {[%emt 00:00:31]} c5 {[%clk 00:03:46]} {[%emt
00:00:35]} 36. Rh2 {[%clk 00:00:19]} {[%emt 00:00:15]} Qb5+ {[%clk 00:03:38]}
{[%emt 00:00:12]} 37. Kg1 {[%clk 00:00:24]} h6 {[%clk 00:02:51]} {[%emt
00:00:52]} 38. Re2 {[%clk 00:00:23]} {[%emt 00:00:05]} Qc4 {[%clk 00:02:39]}
{[%emt 00:00:18]} 39. g5 {[%clk 00:00:17]} {[%emt 00:00:12]} hxg5 {[%clk
00:02:23]} {[%emt 00:00:20]} 40. fxg5 {[%clk 00:00:13]} {[%emt 00:00:10]} Qd4+
{[%clk 00:02:10]} {[%emt 00:00:17]} 41. Qxd4 {[%clk 00:00:10]} {[%emt
00:00:08]} cxd4 {[%clk 00:02:14]} 42. Rf2+ {[%clk 00:00:13]} {[%emt 00:00:03]}
Ke8 {[%clk 00:02:13]} {[%emt 00:00:05]} 43. h6 {[%clk 00:00:13]} {[%emt
00:00:05]} Kd7 {[%clk 00:02:12]} {[%emt 00:00:06]} 44. Rf4 {[%clk 00:00:17]}
{[%emt 00:00:02]} e5 {[%clk 00:02:15]} {[%emt 00:00:01]} 45. Rf6 {[%clk
00:00:19]} {[%emt 00:00:03]} e4 {[%clk 00:02:17]} {[%emt 00:00:03]} 46. Kf2
{[%clk 00:00:22]} {[%emt 00:00:03]} e3+ {[%clk 00:01:54]} {[%emt 00:00:28]} 47.
Ke2 {[%clk 00:00:25]} Re8 {[%clk 00:01:53]} {[%emt 00:00:06]} 48. Rf1 {[%clk
00:00:13]} {[%emt 00:00:17]} Kxd6 {[%clk 00:01:56]} {[%emt 00:00:03]} 49. Kd3
{[%clk 00:00:14]} {[%emt 00:00:04]} Ke5 {[%clk 00:01:54]} {[%emt 00:00:06]} 50.
Rf7 {[%clk 00:00:12]} {[%emt 00:00:07]} Rc8 {[%clk 00:01:36]} {[%emt 00:00:23]}
51. Re7+ {[%clk 00:00:12]} {[%emt 00:00:05]} Kf5 {[%clk 00:01:32]} {[%emt
00:00:09]} 52. Kxd4 {[%clk 00:00:12]} {[%emt 00:00:05]} Kxg5 {[%clk 00:01:34]}
{[%emt 00:00:02]} 53. h7 {[%clk 00:00:16]} Kh6 {[%clk 00:01:28]} {[%emt
00:00:12]} 54. Kxe3 {[%clk 00:00:19]} {[%emt 00:00:01]} Rh8 {[%clk 00:01:26]}
{[%emt 00:00:07]} 55. Rb7 {[%clk 00:00:23]} {[%emt 00:00:01]} Rxh7 {[%clk
00:01:29]} {[%emt 00:00:02]} 56. Rxb6 {[%clk 00:00:28]} {[%emt 00:00:01]} Kg5
{[%clk 00:01:31]} {[%emt 00:00:03]} 57. Kf3 {[%clk 00:00:27]} {[%emt 00:00:06]}
Rh3+ {[%clk 00:01:31]} {[%emt 00:00:04]} 58. Kg2 {[%clk 00:00:32]} Rb3 {[%clk
00:01:34]} {[%emt 00:00:03]} 59. Rb8 {[%clk 00:00:33]} {[%emt 00:00:04]} Kg4
{[%clk 00:01:37]} {[%emt 00:00:03]} 60. Kf2 {[%clk 00:00:23]} {[%emt 00:00:15]}
g5 {[%clk 00:01:38]} {[%emt 00:00:03]} 61. b5 {[%clk 00:00:28]} Rb2+ {[%clk
00:01:40]} {[%emt 00:00:03]} 62. Ke3 {[%clk 00:00:26]} {[%emt 00:00:06]} Kg3
{[%clk 00:01:41]} {[%emt 00:00:04]} 63. Kd4 {[%clk 00:00:29]} {[%emt 00:00:04]}
g4 {[%clk 00:01:43]} {[%emt 00:00:02]} 64. Kc5 {[%clk 00:00:33]} Kg2 {[%clk
00:01:39]} {[%emt 00:00:09]} 65. b6 {[%clk 00:00:36]} {[%emt 00:00:04]} g3
{[%clk 00:01:43]} 66. Rg8 {[%clk 00:00:40]} Kf2 {[%clk 00:01:38]} {[%emt
00:00:09]} 67. Kc6 {[%clk 00:00:43]} {[%emt 00:00:03]} g2 {[%clk 00:01:37]}
{[%emt 00:00:06]} 68. Rxg2+ {[%clk 00:00:46]} {[%emt 00:00:02]} Kxg2 {[%clk
00:01:41]} 69. b7 {[%clk 00:00:50]} 1/2-1/2